{"text_format":"1","workbook":"xlsx","n_sheets":9,"sheets":["Guidance for Local Authorities ","1. Introduction","2. Service details","3. Service demographics","4. Staff & volunteers","5. Accessibility & integration","6. Service activities","7. Service dashboard","8. Understanding the dashboard"],"not_rendered":{"charts":4,"images":0,"macros":0,"external_links":0,"defined_names":3,"comments":0,"pivot_tables":0},"unopened":[],"bounds":{"document_bytes":16777216,"sheet_cells":100000,"rows_first":2000,"rows_last":500,"rows_between":2000,"halvings":0,"cell_chars":16384,"cell_head_chars":4096},"cells_cut":0,"cells_raw":0,"read":"whole","date_system":"1900"}

{"sheet":"Guidance for Local Authorities ","index":0,"n_rows":11,"n_cols":2,"rows_kept":11,"cut":false,"hidden":false,"merged":[[10,1,11,11],[1,1,1,11],[4,1,4,11],[5,1,5,11],[6,1,6,11],[8,1,8,11]]}
[]
[null,"Mapping Inclusion health services - Guidance for local authorities and commissioners"]
[]
[null,"What is the purpose of this tool? "]
[null,"Inclusion health services work to improve the care and health outcomes of people facing extreme inequities.  Many local networks and partnerships exist between NHS, voluntary, community and social enterprises (VCSEs) and others. However, often there is no overview of the services available, who they support and how they operate.  This mapping tool is designed for use by   local planners and commissioners of Inclusion Health services to improve understanding of services and their approaches to service delivery (including outreach and integrated services);  strengthen links between services; and identify gaps in current provision. "]
[null,"How will this tool support local authorities and commissioners? "]
[null,"Local data collected through this tool will help local authorities, Integrated Care Boards and other partners to understand local commitment to meeting needs of inclusion health groups. It will help to identify the scope and scale of local inclusion health services and may be used to develop a local community of practice. "]
[null,"How to use this tool? "]
[null,"This mapping tool is designed to be completed by inclusion health services which provide health-related support to an inclusion health group in your local area.  Examples of health-related support include testing or treating a specific disease; helping someone access a GP/hospital/drug treatment service/other health service; providing outreach drug or alcohol recovery support. No patient identifiable information is collected. Data is for local planning purposes only and should not be shared beyond those involved in this planning process. "]
[]
[null,"Note on Tool development: This tool was developed by Find&Treat University College London Hospital and UKHSA. "]

{"sheet":"1. Introduction","index":1,"n_rows":13,"n_cols":2,"rows_kept":13,"cut":false,"hidden":false,"merged":[[15,1,16,11],[1,1,1,11],[4,1,4,11],[9,1,9,11],[11,1,11,11],[5,1,5,11],[6,1,6,11],[7,1,7,11]]}
[]
[null,"Mapping Inclusion health services - introduction for Inclusion health services"]
[]
[null,"What is the purpose of this tool? "]
[null,"Inclusion health services work to improve the care and health outcomes of people facing extreme inequities.  Many local networks and partnerships exist between NHS, voluntary, community and social enterprises (VCSEs) and others. However, often there is no overview of the services available, who they support and how they operate.  By mapping services, local planners and commissioners of Inclusion Health services can improve understanding of locally available services and their approaches to service delivery (including outreach and integrated services);  strengthen links between services; and identify gaps in current provision. "]
[null,"How will this tool support inclusion health services? "]
[null,"Your service: This tool will generate a dashboard for your service. This will show who your service supports, the type of interventions you offer, and how your service is meeting principles of effective healthcare for inclusion health groups. No patient identifiable information is collected. Data is for local planning purposes only and should not be shared beyond those involved in this planning process."]
[null,"Local planners and commissioners of Inclusion Health services: Locally, data collected through this tool will help local planners and commissioners to improve understanding of  commitment to meeting the needs of inclusion health groups. It will identify the scope and scale of local inclusion health services and help to develop a local community of practice. "]
[null,"Who should use this tool? "]
[null,"If your service provides health-related support to an inclusion health group, please complete this tool.  Examples of health-related support include testing or treating a specific disease; helping someone access a GP/hospital/drug treatment service/other health service; providing outreach drug or alcohol recovery support. "]
[null,"How long will it take to complete the tool? "]
[null,"If your service is limited to one area of healthcare support (e.g. testing and treating one disease) this tool should take around 30 minutes to complete.  If your service offers a wider range of healthcare support, this tool may take between 30 to 60 minutes to complete. "]
[null,"You may save this form and return to it at any stage. "]

{"sheet":"2. Service details","index":2,"n_rows":72,"n_cols":2,"rows_kept":72,"cut":false,"hidden":false,"merged":[[72,1,72,3],[71,1,71,3],[62,1,62,2],[63,1,63,2],[64,1,64,2],[65,1,65,2],[69,2,69,3],[67,1,67,2],[44,1,44,3],[45,1,45,3],[55,1,55,2],[56,1,56,2],[57,1,57,2],[46,1,46,2],[47,1,47,2],[58,1,58,2],[59,1,59,2],[54,1,54,3],[61,1,61,3],[48,1,48,2],[49,1,49,2],[50,1,50,2],[51,1,51,2],[52,1,52,2],[1,1,1,3],[27,1,27,3],[9,1,9,3],[11,1,11,2],[10,2,10,3],[2,1,2,3],[4,1,4,2],[6,1,6,3],[7,1,7,3],[3,1,3,3],[5,1,5,3],[14,1,14,3],[32,2,32,3],[15,2,15,3],[16,2,16,3],[17,2,17,3],[18,2,18,3],[19,2,19,3],[21,2,21,3],[23,2,23,3],[24,2,24,3],[25,2,25,3],[28,1,28,2],[29,1,29,2],[30,1,30,2],[39,1,39,2],[40,1,40,2],[41,1,41,2],[42,1,42,2],[34,1,34,3],[37,1,37,2],[38,1,38,2],[35,1,35,2],[36,1,36,2]]}
[]
[null,"How to complete this tool"]
[null,"This tool consists of 7 'worksheets'. Each worksheet asks questions about a different aspect of your inclusion health service."]
[null,"Please answer the questions to the best of your ability. "]
[null,"The questions with a pink box next to them require an answer.  The pink box looks like this    -------------------------------->"]
[null,"To answer a question, click on the answer box. Most of the answer boxes have a 'drop down' menu which appears when you click on the answer box. Select the relevant answer or leave the question box empty. If you make a mistake, just delete your answer. Other questions require free-text entry. Type your answer in the box to answer the question. "]
[null,"Ignore the question if it is not relevant to your service. e.g. if your don’t have a TB service, ignore all questions about TB. "]
[null,"At the end of the tool, you will see a 'Service Dashboard'. This will fill automatically once you have completed relevant sections of the tool. The dashboard gives you an overview of your service users, your service activities, and how you embed key recommendations for inclusion healthcare in your service.  "]
[]
[null,"About you "]
[null,"What is your role?"]
[null,"How long have you worked in inclusion health? "]
[]
[null,"Service details"]
[null,"This section provides basic details about the service, where it operates, what kind of service it is, which inclusion health groups it supports, and service funding."]
[null,"Service name"]
[null,"Address"]
[null,"Website"]
[null,"Contact number"]
[null,"Email address "]
[]
[null,"Year service started "]
[]
[null,"Where the service operates "]
[null,"Region (s)"]
[null,"Local authority (ies)"]
[]
[null,"What kind of service is this? Please choose 'yes' for all that apply. "]
[null,"Voluntary/ charity sector/ social enterprise"]
[null,"NHS service for people from inclusion health groups only. This could be a primary or community or secondary care or specialist NHS service. e.g, a GP practice exclusively for inclusion health groups"]
[null,"NHS primary, community, secondary care or specialist service which caters for the general population AND provides a specific targeted services for inclusion health group(s). e.g, a GP practice serving a general population which also has a specialist clinic exclusively for inclusion health groups"]
[null,"Other (please specify below) "]
[null,"If you selected 'Other', please give details here"]
[]
[null,"Which inclusion health group does this service support? Please choose 'yes' for all that apply. "]
[null,"People who experience homelessness"]
[null,"People with drug and alcohol dependence"]
[null,"Vulnerable migrants and refugees"]
[null,"Gypsy, Roma, and Traveller communities"]
[null,"People in contact with the justice system"]
[null,"Victims of modern slavery"]
[null,"Sex workers"]
[null,"Other marginalised groups"]
[]
[null,"Service partners & funding"]
[null,"This section is about your partners, who funds the service and funding cycles."]
[null,"Who are your main partners? Please choose 'yes' for all that apply. "]
[null,"NHS"]
[null,"Voluntary, Community and Social Enterprises (VCSEs)"]
[null,"Academic partners"]
[null,"Other government partners"]
[null,"Places of accommodation (e.g. homeless hostels, initial accommodation centre for asylum seekers) "]
[null,"Other  "]
[]
[null,"Who funds the service? Please choose 'yes' for all that apply. "]
[null,"Local authority"]
[null,"NHS"]
[null,"Private donation"]
[null,"Charitable funds"]
[null,"Other"]
[]
[null,"What is the typical duration of funding the service receives? Please choose 'yes' for all that apply. "]
[null,"1 year or less"]
[null,"2 years"]
[null,"3 years "]
[null,">3 years "]
[]
[null,"When does your current funding cycle end? (year)"]
[]
[null,"What is your estimated annual budget in GBP (£)"]
[]
[null,"Please use this space to describe funding arrangements (e.g. if different parts of your service are commissioned separately) and if these arrangements impact your service in a positive or negative way. Please tell us about the impact on staff, service users and service provision. "]

{"sheet":"3. Service demographics","index":3,"n_rows":28,"n_cols":14,"rows_kept":28,"cut":false,"hidden":false,"merged":[[25,1,26,1],[20,1,24,1],[2,1,2,3],[10,1,11,1],[8,1,9,1],[14,1,15,1],[16,1,17,1]]}
[]
[null,"Service demographics (annual)"]
[null,"This section gives an overview of the number of people using the service, their age, sex and ethnicity in a given year. Select one year to report on.  Please give estimates if you don’t know the exact number. "]
[null,"Year ",null,"Required answer"]
[]
[null,"Number of service users and service visits ","Number of people accessing the service",0,null,null,null,null,null,null,null,null,null,{"$f":"IF(OR(D6:D7>0),\"1\",\"0\")","v":"0"}]
[null,"Please give estimates if you don't know the exact number e.g. 10, 20, 50, 100","Number of visits to the service",0]
[]
[null,"Age of service users","<18 years",0,null,null,null,null,null,null,null,null,null,{"$f":"IF(OR(D9:D12>0),\"1\",\"0\")","v":"0"}]
[null,null,"18-64 years",0]
[null,"Please give estimates if you don’t know the exact number e.g. 10%, 25%, 50%",">64 years",0]
[null,null,"Not known",0]
[null,null,"This number should equal 100",{"$f":"SUM(D9:D12)","v":0}]
[]
[null,"Sex of service users","Female",0,null,null,null,null,null,null,null,null,null,{"$f":"IF(OR(D15:D18>0),\"1\",\"0\")","v":"0"}]
[null,null,"Male",0]
[null,"Please give estimates if you don’t know the exact number e.g. 10%, 25%, 50%","Transgender/ non-binary",0]
[null,null,"Not known",0]
[null,null,"This number should equal 100",{"$f":"SUM(D15:D18)","v":0}]
[]
[null,"Ethnicity of service users","Asian, Asian British, Asian Welsh",0,null,null,null,null,null,null,null,null,null,{"$f":"IF(OR(D21:D27>0),\"1\",\"0\")","v":"0"}]
[null,null,"Black, Black British, Black Welsh, Caribbean or African",0]
[null,null,"Mixed or Multiple ethnic groups",0]
[null,null,"White: Irish, Gypsy or Irish Traveller, Roma, other White",0]
[null,null,"White: English, Welsh, Scottish, Northern Irish or British",0]
[null,"Please give estimates if you don’t know the exact number e.g. 10%, 25%, 50%","Other ethnic group",0]
[null,null,"Not known",0]
[null,null,"this number should equal 100",{"$f":"SUM(D21:D27)","v":0}]

{"sheet":"4. Staff & volunteers","index":4,"n_rows":50,"n_cols":6,"rows_kept":50,"cut":false,"hidden":false,"merged":[[50,1,50,2],[34,1,34,2],[39,1,39,2],[3,1,3,2],[20,1,20,2],[29,1,29,2],[5,1,5,2],[18,1,18,2]]}
[]
[]
[null,"People working with the service "]
[null,"This section identifies who works with the service and how people with lived experience (peers) are involved."]
[null,"Does the service involve any HEALTHCARE professionals or staff with HEALTHCARE skills on a paid or voluntary basis? ",null,"Required answer"]
[null,"Please select 'yes' for all people with HEALTHCARE skills working with the service."]
[null,"Dietician or nutritionist"]
[null,"Health visitor"]
[null,"Healthcare assistant"]
[null,"Healthcare navigator"]
[null,"Medical doctor"]
[null,"Midwife"]
[null,"Nurse"]
[null,"Pharmacist"]
[null,"Physiotherapist"]
[null,"Social worker"]
[null,"Other staff with healthcare skills e.g. staff able to administer vaccines; staff able to carry out blood tests; social prescribers"]
[null,"Other  "]
[]
[null,"Does the service involve any staff or volunteers with OTHER SKILLS?",null,"Required answer"]
[null,"Please select 'yes' for all people with OTHER skills working with the service."]
[null,"Expertise in housing (e.g. emergency accommodation)"]
[null,"Expertise in financial issues (e.g. access to benefits)"]
[null,"Expertise in legal issues"]
[null,"Administrative support"]
[null,"Data analysis"]
[null,"Driver"]
[null,"Other"]
[null,"None of these"]
[]
[null,"Does the service involve peer workers (people with lived experience)?",null,"Required answer",null,{"$f":"IF(C31=\"Yes\",1,0)","v":0}]
[null,"If yes, please answer the following questions:"]
[null,"What proportion of people working within your service are people with LIVED EXPERIENCE (peer workers)? Please estimate if you're not sure. "]
[]
[null,"Are people with lived experience (peer workers) involved on a PAID or VOLUNTARY basis? Please select all 'yes' for that apply."]
[null,"Peers workers are PAID "]
[null,"Peers workers are UNPAID VOLUNTEERS"]
[null,"Peers are not paid but they receive incentives for their work"]
[]
[null,"How are peer workers involved in service design and delivery? Please select 'yes' for all that apply."]
[null,"Supporting service users through diagnosis and treatment "]
[null,"Delivering health education and health promotion "]
[null,"Delivering clinical healthcare services e.g. taking blood samples, administering vaccines"]
[null,"Providing support to help service users to access or navigate healthcare services "]
[null,"Supporting service users to access non healthcare services e.g. housing, benefits, legal advice, "]
[null,"Finding patients lost to follow up from NHS and other services"]
[null,"Conducting/ contributing to research"]
[null,"Designing/ contributing to design of services "]
[null,"Managing the service"]
[null,"Other (please provide details below)"]

{"sheet":"5. Accessibility & integration","index":5,"n_rows":61,"n_cols":6,"rows_kept":61,"cut":false,"hidden":false,"merged":[[49,1,49,2],[58,1,59,2],[60,1,61,2],[62,1,65,2],[10,1,10,2],[2,1,2,2],[9,1,9,2],[18,1,19,2],[30,1,30,2],[40,1,40,2],[21,1,21,2],[28,1,28,2]]}
[null,null,null,null,"dashboard analysis ","dashboard analysis "]
[null,"Service accessibility & integration"]
[null,"This section is about how the service is accessible to its clients, in terms of location, outreach, service hours and practical support to attend."]
[null,"Where does the service operate? Please select 'yes' for all that apply"]
[null,"The service operates in a static settings used specifically for this purpose e.g. specialist GP for inclusion health groups"]
[null,"Services are provided in a static healthcare setting used for multiple purposes e.g. GP, hospital, pharmacy "]
[null,"Services are provided in a non healthcare setting e.g. hostel, day centre",null,null,{"$f":"IF(C7=\"Yes\",1,0)","v":0}]
[null,"Services are provided via outreach or mobile teams ",null,null,{"$f":"IF(C8=\"Yes\",1,0)","v":0}]
[null,"Other (please give details below)"]
[]
[null,"If your service includes an outreach or mobile provision, how do you provide this service? Please select 'yes' for all that apply. "]
[null,"In a van"]
[null,"On the street"]
[null,"In an accommodation setting (e.g. homeless hostel, refuge, asylum seeker accommodation, Gypsy or Roma or Traveller site)"]
[null,"In a day centre"]
[null,"In a drug or alcohol treatment centre"]
[null,"In an NHS setting (e.g. as a visiting outreach team) "]
[null,"Other (please give details below)"]
[]
[]
[null,"Does the service offer flexible access? ",null,"Required answer",{"$f":"IF(C21=\"Yes\",1,0)","v":0}]
[null,"If your service offers flexible access, please select 'yes' for all that apply. "]
[null,"Booked appointments"]
[null,"Drop in sessions"]
[null,"Flexible appointment duration"]
[null,"Flexible opening hours (including out of hours service)"]
[null,"Remote consultation"]
[null,"Other (please give details below)"]
[]
[null,"Does the service include practical help or incentives for service users to access care?  ",null,"Required answer",{"$f":"IF(C30=\"Yes\",1,0)","v":0}]
[null,"If your service offers practical help or incentives, please select from the following. Please select all that apply. "]
[null,"Clothing"]
[null,"Digital connectivity (e.g. phone credit)"]
[null,"Help with transport costs"]
[null,"Hygiene items (e.g. toothbrush, soap, sanitary products)"]
[null,"Soup kitchen, hot drinks or similar"]
[null,"Support to navigate healthcare services"]
[null,"Translation support"]
[null,"Vouchers"]
[null,"Other (please give details below)"]
[]
[]
[null,"Integrated care to address multiple health-related needs at once "]
[null,"This section is about integrated care to address multiple health-related needs at once. "]
[null,"Some examples of integrated care are:"]
[null,"- Testing and/or treatment for more than one health condition at the same time;  "]
[null,"- Testing plus support to navigate NHS services; "]
[null,"- Treatment of a health condition plus support to access accommodation"]
[null,"Does your service offer integrated care to address multiple health-related needs at once?"]
[null,"If you offer integrated services, please select 'yes' for all that apply. "]
[null,"Infectious disease services (e.g. TB, hepatitis, HIV, syphilis, sexually transmitted infections)"]
[null,"Vaccination services"]
[null,"Reproductive health services (STIs are included in 'infectious disease services')"]
[null,"Non communicable disease services (e.g. blood pressure, BMI checks, cancer screening, cholesterol, diabetes, lung health, mental health, NHS health checks)"]
[null,"Other health services (e.g. dental, eye health, podiatry, physiotherapy, wound care)"]
[null,"Health improvement and harm reduction (e.g. drug & alcohol services, smoking cessation services)"]
[null,"Other general support to access health services (e.g. healthcare navigation)"]
[null,"Other non healthcare services e.g. support with accommodation, welfare, legal advice"]
[null,"If your service offers integrated care to address multiple health-related needs at once, please provide brief details here "]
[]
[null,"e.g. 'The service includes testing and treatment for sexually transmitted infections,  contraceptive advice,  referral for emergency housing and safeguarding'additional information here"]

{"sheet":"6. Service activities","index":6,"n_rows":111,"n_cols":22,"rows_kept":111,"cut":false,"hidden":false,"merged":[[34,7,34,10],[39,10,39,20],[40,1,40,20],[38,1,38,20],[37,1,37,20],[39,1,39,7],[32,1,32,5],[33,1,33,5],[34,1,34,5],[23,1,23,10],[25,1,25,10],[24,1,24,9],[31,1,31,5],[26,1,26,5],[26,7,26,10],[27,7,27,10],[28,7,28,10],[29,7,29,10],[30,7,30,10],[31,7,31,10],[32,7,32,10],[33,7,33,10],[27,1,27,5],[28,1,28,5],[29,1,29,5],[30,1,30,5],[12,1,12,14],[106,1,106,5],[107,1,107,5],[108,1,108,5],[109,1,109,5],[110,1,110,5],[85,1,85,6],[84,1,84,6],[87,1,87,6],[101,1,101,6],[103,1,103,5],[91,1,91,5],[86,1,86,5],[88,1,88,5],[89,1,89,5],[90,1,90,5],[92,1,92,5],[104,1,104,5],[105,1,105,5],[97,1,97,5],[96,1,96,5],[93,1,93,5],[98,1,98,5],[99,1,99,5],[95,1,95,5],[102,1,102,6],[94,1,94,5],[81,1,81,5],[64,1,64,4],[68,1,68,5],[69,1,69,6],[67,1,67,6],[71,1,71,5],[66,1,66,6],[73,1,73,5],[74,1,74,5],[75,1,75,5],[76,1,76,5],[77,1,77,5],[79,1,79,5],[80,1,80,5],[78,1,78,5],[70,1,70,5],[52,1,52,5],[53,1,53,5],[54,1,54,5],[49,1,49,5],[72,1,72,5],[50,1,50,6],[59,1,59,4],[60,1,60,3],[61,1,61,3],[62,1,62,3],[63,1,63,3],[56,1,56,4],[57,1,57,4],[58,1,58,3],[51,1,51,5],[2,1,2,14],[4,1,4,14],[9,1,9,14],[8,1,8,13],[7,1,7,13],[7,14,8,14],[3,1,3,14]]}
[]
[null,"Healthcare services"]
[null,"This section is about any healthcare services you provide. You only need to answer the questions relevant to your service. The sections are:"]
[null,"1) Healthcare for infectious diseases\n2) Vaccination services\n3) Healthcare for non-communicable diseases\n4) Reproductive health \n5) Health promotion and harm reduction\n6) Other healthcare support e.g. dental and eye health, access to health services, safeguarding services                                                                                                                                  "]
[null,"7) Other non healthcare support e.g.  legal advice, benefits advice, support accessing accommodation                                                                                                                            "]
[]
[null,"1. Healthcare for infectious diseases"]
[null,"Does the service offer any healthcare interventions related to infectious diseases? "]
[null,"Examples of infectious disease include tuberculosis (TB), hepatitis B & C, HIV and sexually transmitted infections such as syphilis, chlamydia and gonorrhoea"]
[null,"If you answered 'yes', please use the grid below to indicate the infectious disease service you offer and the type of activities you provide.  "]
[null,null,"TB",null,"Hepatitis B",null,"Hepatitis C",null,"HIV",null,"Syphilis",null,"Chlamydia  ",null,"Gonorrhoea"]
[null,"The service includes ANY interventions related to this disease"]
[null,"If you selected 'yes', please indicate the type of activity and the approximate number of interventions below"]
[null,"Screening (includes rapid diagnostic test, x-ray, symptom screen) "]
[null,"Diagnosis (includes blood test, sputum sample)"]
[null,"Treatment "]
[null,"Referral to other service "]
[null,"Support to complete treatment (e.g. outreach nurse, Directly observed/ Video observed treatment) "]
[null,"Finding patients lost to follow up"]
[null,"Contact tracing"]
[null,"Other "]
[null," How many people did you support for screening, diagnosis or treatment in 2023? Please provide an estimate if you don't know the exact number. ",150,null,0,null,0,null,0,null,0,null,0,null,0]
[]
[null,"2. Vaccinations "]
[null,"Does the service provide any vaccinations? "]
[null,"If you selected 'yes', please select the vaccinations you offer & indicate the number of vaccinations provided if possible"]
[null,null,null,null,null,null,"Vaccine offered","Number of vaccines (approximately)"]
[null,"Childhood immunisation catch-up",null,null,null,null,null,0,null,null,null,null,null,null,null,null,null,null,null,null,null,{"$f":"$H28","v":0}]
[null,"Covid-19",null,null,null,null,null,0,null,null,null,null,null,null,null,null,null,null,null,null,null,{"$f":"$H29","v":0}]
[null,"Hepatitis B",null,null,null,null,null,0,null,null,null,null,null,null,null,null,null,null,null,null,null,0]
[null,"Influenza",null,null,null,null,null,0,null,null,null,null,null,null,null,null,null,null,null,null,null,0]
[null,"MMR",null,null,null,null,null,0,null,null,null,null,null,null,null,null,null,null,null,null,null,0]
[null,"Pneumococcal",null,null,null,null,null,0,null,null,null,null,null,null,null,null,null,null,null,null,null,0]
[null,"Shingles",null,null,null,null,null,0,null,null,null,null,null,null,null,null,null,null,null,null,null,0]
[null,"Other",null,null,null,null,null,0,null,null,null,null,null,null,null,null,null,null,null,null,null,0]
[]
[]
[null,"3. Non communicable diseases"]
[null,"This section is about services for non communicable diseases. This includes high blood pressure, high cholesterol, diabetes, BMI checks, lung health, NHS health checks, mental health. "]
[null,"Does the service provide any healthcare interventions for non communicable diseases? "]
[null,"If you answered 'yes', please use the grid below to indicate the non communicable disease service you offer and the type of activities you provide.  "]
[null,null,"High blood pressure",null,"High cholesterol",null,"Diabetes",null,"BMI check",null,"Bowel cancer",null,"Breast cancer",null,"Cervical cancer",null,"COPD",null,"Asthma",null,"NHS Health checks"]
[null,"Testing "]
[null,"Diagnosis"]
[null,"Treatment"]
[null,"Referral to other relevant service"]
[null,"Other"]
[null," How many people did you support for screening, diagnosis or treatment in 2023? Please provide an estimate if you don't know the exact number. ",0,null,0,null,0,null,0,null,0,null,0,null,0,null,0,null,0,null,0]
[]
[null,"Does the service provide any interventions related to mental health conditions? "]
[null,"If you answered 'yes', please indicate the type of service below"]
[null,"Screening "]
[null,"Counselling"]
[null,"Psychological support "]
[null,"Onward referral to other relevant service"]
[]
[null,"4. Reproductive health (contraception) "]
[null,"This section is for reproductive health (contraception). If you offer testing, diagnosis and treatment for sexually transmitted infections, please provide this information in the infectious diseases section. "]
[null,"Does the service offer any reproductive health services?   "]
[null,"If yes, please indicate which services you offer "]
[null,"Contraception (barrier method)"]
[null,"Contraception (other) "]
[null,"Referral to a contraception provider"]
[null,"Other"]
[]
[]
[null,"5. Health promotion and harm reduction "]
[null,"This section is about any health improvement and harm reduction services you offer including: smoking cessation; treatment and support for drug use; treatment and support for alcohol use;  promoting physical activity; promoting healthy diet"]
[null,"Does the service offer any health improvement or harm reduction interventions?   "]
[null,"If yes, please indicate which services you offer "]
[null,"Smoking cessation "]
[null,"Drug use: Needle and syringe exchange"]
[null,"Drug use: Prescribing Opiate substitution therapy "]
[null,"Drug use: Support to access Opiate substitution therapy"]
[null,"Drug use: Training in how to use naloxone "]
[null,"Drug use: Naloxone prescription"]
[null,"Drug use: detox"]
[null,"Alcohol use: detox "]
[null,"Alcohol use: recovery"]
[null,"Promoting physical activity"]
[null,"Promoting healthy diet "]
[null,"Other"]
[]
[]
[null,"6. Other health and non-health services "]
[]
[null,"Do you provide other health and health-related services not included above? "]
[null,"If you selected 'yes', please indicate which services you offer"]
[null,"Adult social care"]
[null,"Dental health"]
[null,"Eye health"]
[null,"Physiotherapy"]
[null,"Podiatry"]
[null,"Safeguarding"]
[null,"Wound care "]
[null,"Support to navigate healthcare services e.g. accompanying patient to appointment "]
[null,"Support to register with a GP"]
[null,"Support with language services/ interpreters"]
[null,"Training and development "]
[null,"Finding patients lost to follow up "]
[]
[null,"7. Non-healthcare services"]
[null,"Do you provide non healthcare services? e.g. legal advice, benefits advice, support accessing accommodation. "]
[null,"Benefits advice"]
[null,"Domestic violence services"]
[null,"Education and employment"]
[null,"Family support"]
[null,"Housing services"]
[null,"Immigration advice"]
[null,"Legal advice "]
[null,"Probation advice"]

{"sheet":"7. Service dashboard","index":7,"n_rows":29,"n_cols":14,"rows_kept":29,"cut":false,"hidden":false,"merged":[[7,9,8,9],[10,8,11,8],[10,9,11,9],[19,8,20,9],[1,3,1,8],[20,2,20,3],[6,2,6,3],[14,5,14,6],[20,5,20,6],[10,2,10,3],[16,2,16,3],[13,8,14,8],[13,9,14,9],[7,8,8,8],[16,9,17,9],[16,8,17,8],[7,5,7,6],[6,8,6,9],[6,5,6,6]]}
[null,null,null,null,null,null,null,null,null,null,null,null,null,"Data from worksheets"]
[null,null,null,"Inclusion health service impact dashboard"]
[]
[null,null,"Year",{"$f":"'3. Service demographics'!C4","v":0}]
[]
[]
[null,null,"Service users",null,null,"Top services delivered",null,null,"Cornerstones of effective inclusion health service delivery"]
[null,null,"People visiting the service",{"$f":"'3. Service demographics'!D6","v":0},null,"Infectious disease screening",null,null,"Peer-involved",{"$f":"N8","v":0},null,null,null,{"$f":"'4. Staff & volunteers'!C31","v":0}]
[null,null,"Number of visits",{"$f":"'3. Service demographics'!D7","v":0},null,"Hepatitis B",{"$f":"'6. Service activities'!E22","v":0}]
[null,null,null,null,null,"Hepatitis C",{"$f":"'6. Service activities'!G22","v":0}]
[null,null,"Age of service users",null,null,"HIV",{"$f":"'6. Service activities'!I22","v":0},null," Outreach",{"$f":"N11","v":0},null,null,null,{"$f":"'5. Accessibility & integration'!C8","v":0}]
[null,null,{"$f":"'3. Service demographics'!C9:D12","v":"<18 years"},0,null,"Syphilis ",{"$f":"'6. Service activities'!K22","v":0}]
[null,null,"18-64 years",0,null,"TB ",{"$f":"'6. Service activities'!C22","v":150}]
[null,null,">64 years",0,null,null,null,null,"Flexible access",{"$f":"N14","v":0},null,null,null,{"$f":"'5. Accessibility & integration'!C21","v":0}]
[null,null,"Not known",0,null,"Vaccinations"]
[null,null,null,null,null,"Covid-19",{"$f":"'6. Service activities'!V29","v":0}]
[null,null,"Sex of service users",null,null,"Influenza",{"$f":"'6. Service activities'!V31","v":0},null,"Integrated",{"$f":"N17","v":0},null,null,null,{"$f":"'5. Accessibility & integration'!C49","v":0}]
[null,null,"Female",{"$f":"'3. Service demographics'!D15","v":0},null,"Pneumococcal",{"$f":"'6. Service activities'!V33","v":0}]
[null,null,"Male",{"$f":"'3. Service demographics'!D16","v":0},null,"Shingles",{"$f":"'6. Service activities'!V34","v":0}]
[null,null,null,null,null,null,null,null,"Inclusion health group supported"]
[null,null,"Ethnicity of service users",null,null,"Non communicable disease"]
[null,null,"Asian",{"$f":"'3. Service demographics'!D21:D27","v":0},null,"Blood pressure",{"$f":"'6. Service activities'!C48","v":0},null,"People who experience homelessness",0,null,null,null,{"$f":"'2. Service details'!D36","v":0}]
[null,null,"Black",0,null,"Cholesterol",{"$f":"'6. Service activities'!E48","v":0},null,"People with drug or alcohol dependence",{"$f":"N23","v":0},null,null,null,{"$f":"'2. Service details'!D37","v":0}]
[null,null,"Mixed",0,null,"Diabetes",{"$f":"'6. Service activities'!G48","v":0},null,"Vulnerable migrants and refugees",0,null,null,null,{"$f":"'2. Service details'!D38","v":0}]
[null,null,"White Gypsy, Roma, Traveller",0,null,"BMI check",{"$f":"'6. Service activities'!I48","v":0},null,"Gypsy, Roma, and Traveller communities",0,null,null,null,{"$f":"'2. Service details'!D39","v":0}]
[null,null,"White",0,null,null,null,null,"People in contact with the justice system",0,null,null,null,{"$f":"'2. Service details'!D40","v":0}]
[null,null,"Other",0,null,null,null,null,"Victims of modern slavery",0,null,null,null,{"$f":"'2. Service details'!D41","v":0}]
[null,null,"Not known",0,null,null,null,null,"Sex workers",0,null,null,null,{"$f":"'2. Service details'!D42","v":0}]
[null,null,null,null,null,null,null,null,"Other marginalised groups",0,null,null,null,{"$f":"'2. Service details'!D43","v":0}]

{"sheet":"8. Understanding the dashboard","index":8,"n_rows":20,"n_cols":7,"rows_kept":20,"cut":false,"hidden":false,"merged":[[8,2,8,12],[4,2,4,12],[5,2,5,12],[6,2,6,12]]}
[]
[null,"The service dashboard uses data inputted by you to provide a snapshot of your service, as follows: "]
[null,"Service user age, sex, ethnicity","This data comes directly from worksheet 3. 'Service demographics'. "]
[null,"Top Services delivered","This data comes directly from worksheet 6. 'Service activities'"]
[null,"Cornerstones of effective inclusion healthcare delivery ","These are meants to indicate how a service is applying key principles of working with inclusion health groups. They are intended as a self-assessment tool to help services identify their strengths and areas for development. "]
[null,"Peer-involved","This is based on your answer on worksheet 4. 'Staff and volunteers': Does the service involve peer workers (people with lived experience)?"]
[null,"Outreach","This is based on your answer on worksheet 5. 'Accessibility & integration': Services are provided via outreach or mobile teams "]
[null,"Flexible access","This is based on your answer on worksheet 5. 'Accessibility & integration': Does the service offer flexible access? "]
[null,"Integrated care ","This is based on your answer on worksheet 5. 'Accessibility & integration': Does your service offer integrated care to address multiple health-related needs at once?"]
[]
[]
[]
[]
[]
[]
[]
[]
[]
[]
[null,null,null,null,null,null,""]